bitfinex/quotes_SOLUSD_20230113
["timestamp","ask_amount","ask_price","bid_price","bid_amount"]
[1673653426000,61.0825463,18.287,18.265,20.0]
[1673653426221,61.0825463,18.287,18.266,20.0]
[1673653426635,20.0,18.286,18.266,20.0]
[1673653426838,20.0,18.286,18.263,113.9641]
[1673653427054,25.12429543,18.285,18.263,113.9641]
[1673653427269,20.0,18.284,18.263,113.9641]
[1673653427682,31.1133535,18.287,18.263,113.9641]
[1673653427887,31.1133535,18.287,18.264,20.0]
[1673653428101,31.1133535,18.287,18.263,113.9641]
[1673653428420,20.0,18.286,18.263,141.19273336]
[1673653428834,20.0,18.286,18.264,20.0]
[1673653429054,49.9691928,18.286,18.264,20.0]
[1673653429371,45.12429543,18.286,18.264,20.0]
[1673653429776,25.12429543,18.286,18.264,20.0]
[1673653429987,31.1133535,18.287,18.264,20.0]
[1673653430827,56.23764893,18.287,18.264,20.0]
[1673653432103,31.1133535,18.287,18.27,20.46]
[1673653432949,14.484869,18.295,18.28,20.46]
[1673653433576,14.484869,18.295,18.281,2.70869355]
[1673653433785,14.484869,18.295,18.281,22.70869355]
[1673653434196,14.484869,18.295,18.281,2.70869355]
[1673653436001,14.484869,18.295,18.28,20.46]
[1673653436217,20.0,18.294,18.278,2.70869355]
[1673653436525,20.0,18.289,18.266,111.6232]
[1673653436728,20.0,18.288,18.266,111.6232]
[1673653436941,20.0,18.287,18.266,111.6232]
[1673653437556,62.72032519,18.288,18.266,111.6232]
[1673653437773,20.0,18.288,18.266,111.6232]
[1673653439075,20.0,18.288,18.267,20.0]
[1673653439244,20.0,18.287,18.267,20.0]
[1673653440712,45.12429543,18.288,18.267,20.0]
[1673653442078,20.0,18.288,18.267,20.0]
[1673653442283,40.0,18.289,18.267,20.0]
[1673653442918,20.0,18.289,18.267,20.0]
[1673653443335,27.09,18.29,18.268,47.22863336]
[1673653443559,14.484869,18.295,18.27,27.01]
[1673653443759,14.484869,18.295,18.271,21.96695977]
[1673653443980,14.484869,18.295,18.272,20.0]
[1673653444194,14.484869,18.295,18.273,20.0]
[1673653444195,44.4540618,18.295,18.273,20.0]
[1673653444922,44.4540618,18.295,18.271,20.0]
[1673653445247,20.0,18.294,18.27,118.9011]
[1673653445662,45.12429543,18.293,18.27,118.9011]
[1673653445867,20.0,18.292,18.27,118.9011]
[1673653446082,20.0,18.291,18.27,118.9011]
[1673653446284,14.484869,18.295,18.271,20.0]
[1673653446495,14.484869,18.295,18.272,1.50667507]
[1673653446726,14.484869,18.295,18.272,48.73530843]
[1673653446942,14.484869,18.295,18.274,21.66923095]
[1673653447149,14.484869,18.295,18.276,1.82902966]
[1673653447361,14.484869,18.295,18.276,21.82902966]
[1673653447784,14.484869,18.295,18.278,1.82902966]
[1673653448306,14.484869,18.295,18.276,21.82902966]
[1673653448730,14.484869,18.295,18.276,20.0]
[1673653449339,26.95,18.29,18.276,20.0]
[1673653450298,26.95,18.29,18.272,20.0]
[1673653450497,26.95,18.29,18.271,132.3687]
[1673653451352,29.9691928,18.294,18.272,20.0]
[1673653451982,29.9691928,18.294,18.271,132.3687]
[1673653452926,27.01,18.29,18.271,112.3687]
[1673653453146,20.0,18.289,18.271,112.3687]
[1673653453351,62.72032519,18.289,18.271,112.3687]
[1673653453565,87.84462062,18.288,18.271,112.3687]
[1673653453766,87.84462062,18.288,18.263,593.9]
[1673653453978,64.88949983,18.287,18.264,111.4886]
[1673653454197,101.18824263,18.287,18.264,111.4886]
[1673653454392,20.0,18.286,18.264,111.4886]
[1673653454722,20.0,18.284,18.264,111.4886]
[1673653454924,27.2,18.28,18.26,108.6796]
[1673653455143,20.0,18.279,18.26,108.6796]
[1673653455460,49.9691928,18.278,18.253,20.0]
[1673653455662,49.9691928,18.278,18.252,111.4886]
[1673653456076,49.9691928,18.278,18.253,20.0]
[1673653456285,133.4316,18.278,18.254,20.0]
[1673653456495,133.4316,18.278,18.255,20.0]
[1673653456705,133.4316,18.278,18.256,20.0]
[1673653457133,113.4316,18.278,18.256,20.0]
[1673653457557,20.0,18.277,18.256,20.0]
[1673653457764,20.0,18.277,18.254,20.0]
[1673653458293,113.4316,18.278,18.255,20.0]
[1673653458507,113.4316,18.278,18.256,20.0]
[1673653459038,20.0,18.279,18.26,27.2]
[1673653459337,109.6188,18.28,18.262,20.0]
[1673653459554,109.6188,18.28,18.263,20.0]
[1673653459762,110.9623,18.289,18.264,20.0]
[1673653459971,49.9691928,18.288,18.265,20.0]
[1673653460170,20.0,18.287,18.265,20.0]
[1673653461646,49.9691928,18.287,18.264,20.0]
[1673653461867,49.9691928,18.287,18.265,20.0]
[1673653462076,20.0,18.285,18.265,20.0]
[1673653462484,20.0,18.285,18.263,20.0]
[1673653462901,27.09,18.28,18.251,20.0]
[1673653463120,114.9653,18.279,18.254,119.0299]
[1673653463322,63.32955,18.278,18.254,119.0299]
[1673653463755,93.2987428,18.278,18.254,119.0299]
[1673653463970,20.0,18.276,18.254,119.0299]
[1673653464387,45.12429543,18.276,18.254,119.0299]
[1673653465448,25.12429543,18.276,18.254,119.0299]
[1673653466176,25.12429543,18.276,18.256,20.0]
[1673653466366,20.0,18.278,18.256,20.0]
[1673653466582,20.0,18.278,18.255,20.0]
[1673653466583,29.9691928,18.277,18.255,20.0]
[1673653466800,20.0,18.276,18.255,20.0]
[1673653467212,45.12429543,18.276,18.255,20.0]
[1673653468074,93.01379526,18.276,18.255,20.0]
[1673653468467,27.2,18.27,18.254,119.0299]
[1673653468678,20.0,18.269,18.254,119.0299]
[1673653468911,20.0,18.268,18.25,115.1314]
[1673653469836,20.0,18.269,18.25,115.1314]
[1673653470048,40.0,18.269,18.25,115.1314]
[1673653470486,40.0,18.269,18.251,108.9437]
[1673653470888,20.0,18.269,18.251,108.9437]
[1673653471313,25.12429543,18.273,18.251,108.9437]
[1673653471314,47.88949983,18.275,18.251,273.7437]
[1673653471524,47.88949983,18.275,18.26,40.92]
[1673653471848,111.8918,18.28,18.261,20.0]
[1673653472055,20.0,18.288,18.261,128.9437]
[1673653472269,29.9691928,18.285,18.261,128.9437]
[1673653472684,29.9691928,18.285,18.262,20.0]
[1673653472878,29.9691928,18.285,18.263,20.0]
[1673653473095,29.9691928,18.285,18.264,20.0]
[1673653473316,20.0,18.284,18.264,20.0]
[1673653473737,20.0,18.284,18.262,20.0]
[1673653474486,29.9691928,18.283,18.262,20.0]
[1673653474705,20.0,18.282,18.262,20.0]
[1673653475233,29.9691928,18.283,18.262,20.0]
[1673653475547,20.0,18.288,18.262,20.0]
[1673653475758,49.9691928,18.286,18.262,20.0]
[1673653475963,20.0,18.285,18.262,20.0]
[1673653476173,45.12429543,18.285,18.262,20.0]
[1673653477431,49.9691928,18.285,18.262,20.0]
[1673653478582,40.81,18.28,18.261,108.9437]
[1673653478896,66.9691928,18.279,18.261,108.9437]
[1673653479113,20.0,18.278,18.261,108.9437]
[1673653479294,49.9691928,18.278,18.261,108.9437]
[1673653479633,20.0,18.278,18.261,108.9437]
[1673653482237,86.9691928,18.279,18.261,108.9437]
[1673653482662,20.0,18.278,18.261,108.9437]
[1673653484156,45.12429543,18.278,18.261,108.9437]
[1673653485711,25.12429543,18.278,18.261,108.9437]
[1673653486036,45.12429543,18.278,18.261,108.9437]
[1673653486239,45.12429543,18.278,18.255,392.3]
[1673653486452,17.0,18.277,18.256,20.0]
[1673653486650,20.0,18.276,18.256,20.0]
[1673653486861,20.0,18.274,18.256,20.0]
[1673653487064,17.0,18.275,18.256,20.0]
[1673653487297,49.9691928,18.276,18.256,20.0]
[1673653488033,29.9691928,18.276,18.256,20.0]
[1673653489199,6.32955,18.277,18.256,20.0]
[1673653489388,29.9691928,18.278,18.256,20.0]
[1673653489599,20.0,18.277,18.256,20.0]
[1673653490028,49.9691928,18.278,18.256,20.0]
[1673653490346,134.9343,18.279,18.256,20.0]
[1673653490560,134.9343,18.279,18.257,20.0]
[1673653490750,134.9343,18.279,18.259,20.0]
[1673653490955,134.9343,18.279,18.26,232.0145]
[1673653491184,134.9343,18.279,18.261,20.0]
[1673653491612,134.9343,18.279,18.26,232.0145]
[1673653492441,73.03804049,18.285,18.26,232.0145]
[1673653492442,43.06884769,18.285,18.261,20.0]
[1673653492655,20.0,18.287,18.263,20.0]
[1673653492868,20.0,18.287,18.264,20.0]
[1673653493713,29.9691928,18.286,18.264,20.0]
[1673653494033,115.8092,18.288,18.265,20.0]
[1673653494338,20.0,18.287,18.266,20.0]
[1673653494746,20.0,18.287,18.265,20.0]
[1673653494955,20.0,18.287,18.266,20.0]
[1673653495386,49.9691928,18.287,18.266,20.0]
[1673653495596,49.9691928,18.287,18.264,20.0]
[1673653496854,29.9691928,18.287,18.264,20.0]
[1673653497278,29.9691928,18.287,18.262,20.0]
[1673653497487,49.9691928,18.287,18.263,20.0]
[1673653497697,20.0,18.286,18.265,20.0]
[1673653497913,20.0,18.286,18.266,20.0]
[1673653498625,20.0,18.284,18.266,20.0]
[1673653498838,20.0,18.284,18.261,20.0]
[1673653500312,17.0,18.285,18.261,20.0]
[1673653500527,20.0,18.286,18.261,20.0]
[1673653501173,17.0,18.285,18.261,20.0]
[1673653501580,20.0,18.284,18.261,20.0]
[1673653502125,20.0,18.286,18.261,20.0]
[1673653502325,20.0,18.286,18.261,48.06867204]
[1673653503376,20.0,18.286,18.261,20.0]
[1673653504113,25.12429543,18.287,18.262,20.0]
[1673653504327,115.8092,18.288,18.262,20.0]
[1673653504540,115.8092,18.288,18.263,28.06867204]
[1673653504735,115.8092,18.288,18.264,20.0]
[1673653504942,6.32955,18.287,18.261,20.0]
[1673653505368,115.8092,18.288,18.261,48.06867204]
[1673653505697,115.8092,18.288,18.262,20.0]
[1673653506223,115.8092,18.288,18.263,28.06867204]
[1673653506429,115.8092,18.288,18.265,20.0]
[1673653506631,114.4829,18.29,18.27,27.21]
[1673653506851,114.4829,18.29,18.271,137.4705]
[1673653507668,14.484869,18.295,18.271,117.4705]
[1673653507669,20.0,18.289,18.271,117.4705]
[1673653508424,20.0,18.29,18.271,117.4705]
[1673653508826,17.0,18.289,18.271,117.4705]
[1673653509048,20.0,18.289,18.271,117.4705]
[1673653509796,153.59109543,18.29,18.271,117.4705]
[1673653511059,128.4668,18.29,18.271,117.4705]
[1673653511682,108.4668,18.29,18.271,117.4705]
[1673653511998,108.4668,18.29,18.273,20.0]
[1673653512199,108.4668,18.29,18.274,20.0]
[1673653512928,108.4668,18.29,18.271,117.4705]
[1673653513139,108.4668,18.29,18.272,20.0]
[1673653514512,108.4668,18.29,18.273,20.0]
[1673653514732,108.4668,18.29,18.274,20.0]
[1673653515462,108.4668,18.29,18.275,20.0]
[1673653515654,144.4876928,18.297,18.276,20.0]
[1673653515867,144.4876928,18.297,18.277,20.0]
[1673653516306,144.4876928,18.297,18.278,20.0]
[1673653516732,144.4876928,18.297,18.276,20.0]
[1673653517041,144.4876928,18.297,18.275,20.0]
[1673653517254,144.4876928,18.297,18.276,20.0]
[1673653517447,114.5185,18.297,18.276,20.0]
[1673653518287,114.5185,18.297,18.272,20.0]
[1673653518497,20.0,18.296,18.272,20.0]
[1673653518925,134.5185,18.297,18.272,20.0]
[1673653519146,114.5185,18.297,18.272,20.0]
[1673653519349,114.5185,18.297,18.273,20.0]
[1673653519673,114.5185,18.297,18.275,20.0]
[1673653519858,114.5185,18.297,18.277,20.0]
[1673653520200,114.5185,18.297,18.278,20.0]
[1673653521333,100.6651,18.3,18.28,27.21]
[1673653521543,112.3282,18.306,18.282,20.0]
[1673653521756,112.3282,18.306,18.284,20.0]
[1673653522188,112.3282,18.306,18.285,20.0]
[1673653523437,112.3282,18.306,18.286,20.0]
[1673653523773,112.3282,18.306,18.287,20.0]
[1673653523961,112.3282,18.306,18.288,20.0]
[1673653524288,20.0,18.309,18.289,20.0]
[1673653524505,129.3209,18.309,18.289,20.0]
[1673653524691,129.3209,18.309,18.287,20.0]
[1673653525030,109.3209,18.309,18.287,20.0]
[1673653526090,109.3209,18.309,18.288,21.50307604]
[1673653526300,109.3209,18.309,18.289,20.0]
[1673653526709,25.12429543,18.303,18.279,117.4072]
[1673653526917,61.99473994,18.303,18.28,112.1309]
[1673653527137,29.9691928,18.297,18.28,112.1309]
[1673653528408,20.0,18.299,18.28,112.1309]
[1673653528725,29.9691928,18.298,18.28,112.1309]
[1673653529351,137.22,18.3,18.28,112.1309]
[1673653531118,110.26,18.3,18.28,139.2909]
[1673653531336,123.7728,18.31,18.282,21.7115661]
[1673653531553,123.7728,18.31,18.283,20.0]
[1673653531755,123.7728,18.31,18.284,20.0]
[1673653531973,123.7728,18.31,18.285,20.0]
[1673653532189,6.9e-05,18.295,18.286,20.0]
[1673653532400,6.9e-05,18.295,18.287,114.649]
[1673653532596,6.9e-05,18.295,18.288,20.0]
[1673653532806,6.9e-05,18.295,18.289,20.0]
[1673653533772,6.9e-05,18.295,18.288,40.0]
[1673653534294,6.9e-05,18.295,18.289,20.0]
[1673653536288,6.9e-05,18.295,18.291,20.0]
[1673653538592,6.9e-05,18.295,18.29,27.21]
[1673653542705,6.9e-05,18.295,18.29,40.39]
[1673653542918,6.9e-05,18.295,18.291,20.0]
[1673653543545,17.500069,18.309,18.291,20.0]
[1673653544283,17.500069,18.309,18.29,40.39]
[1673653544480,17.000069,18.309,18.29,40.39]
[1673653544699,17.000069,18.309,18.291,20.0]
[1673653545316,17.000069,18.309,18.29,40.39]
[1673653545859,17.000069,18.309,18.29,158.4941]
[1673653546280,17.000069,18.309,18.291,20.0]
[1673653547210,17.000069,18.309,18.29,158.4941]
[1673653548296,17.000069,18.309,18.29,40.39]
[1673653548510,20.0,18.307,18.288,20.0]
[1673653548719,17.0,18.306,18.288,20.0]
[1673653548921,20.0,18.305,18.288,20.0]
[1673653549124,20.0,18.303,18.288,20.0]
[1673653551128,40.71,18.3,18.28,112.1309]
[1673653551345,57.0,18.299,18.271,117.7851]
[1673653551549,82.59044451,18.299,18.271,117.7851]
[1673653552291,42.59044451,18.298,18.271,117.7851]
[1673653552615,20.0,18.297,18.271,117.7851]
[1673653553875,62.59044451,18.297,18.272,20.0]
[1673653554093,92.55963731,18.297,18.272,20.0]
[1673653554398,62.59044451,18.297,18.272,20.0]
[1673653558909,62.59044451,18.297,18.271,117.7851]
[1673653559118,40.71,18.29,18.271,117.7851]
[1673653559326,20.0,18.289,18.271,117.7851]
[1673653559849,20.0,18.288,18.271,117.7851]
[1673653560487,40.0,18.289,18.271,117.7851]
[1673653561018,142.3357,18.29,18.271,145.85377204]
[1673653561227,142.3357,18.29,18.272,20.0]
[1673653561547,142.3357,18.29,18.272,48.06867204]
[1673653564491,142.3357,18.29,18.273,28.06867204]
[1673653564700,142.3357,18.29,18.274,40.0]
[1673653565224,142.3357,18.29,18.274,20.0]
[1673653567934,142.3357,18.29,18.274,48.06867204]
[1673653568471,118.2146,18.294,18.274,48.06867204]
[1673653568688,118.2146,18.294,18.275,20.0]
[1673653568876,118.2146,18.294,18.277,20.0]
[1673653569086,118.2146,18.294,18.278,20.0]
[1673653569315,142.9962,18.3,18.279,20.0]
[1673653569527,40.0,18.299,18.279,158.11597204]
[1673653569736,20.0,18.299,18.279,158.11597204]
[1673653570053,20.0,18.299,18.279,138.11597204]
[1673653570249,20.0,18.299,18.281,20.0]
[1673653570473,62.59044451,18.299,18.279,110.0473]
[1673653570908,20.0,18.298,18.279,110.0473]
[1673653571312,42.59044451,18.297,18.279,110.0473]
[1673653571516,42.59044451,18.297,18.278,20.0]
[1673653571732,27.21,18.29,18.272,28.06867204]
[1673653572040,20.0,18.288,18.271,111.9877]
[1673653572488,29.9691928,18.287,18.271,111.9877]
[1673653572898,72.55963731,18.287,18.271,111.9877]
[1673653573111,42.59044451,18.287,18.271,111.9877]
[1673653573422,67.71473994,18.287,18.271,111.9877]
[1673653574043,42.59044451,18.287,18.271,111.9877]
[1673653574590,138.5394,18.29,18.271,111.9877]
[1673653574801,20.0,18.289,18.271,111.9877]
[1673653574986,45.12429543,18.288,18.271,111.9877]
[1673653575518,25.12429543,18.288,18.271,111.9877]
[1673653575745,20.0,18.289,18.271,111.9877]
[1673653577826,20.0,18.287,18.271,111.9877]
[1673653578365,45.12429543,18.287,18.271,111.9877]
[1673653579220,25.12429543,18.287,18.271,111.9877]
[1673653579621,29.9691928,18.287,18.271,111.9877]
[1673653579830,20.0,18.286,18.271,111.9877]
[1673653580244,20.0,18.284,18.271,111.9877]
[1673653580669,25.12429543,18.284,18.271,111.9877]
[1673653581419,42.59044451,18.286,18.271,111.9877]
[1673653581826,20.0,18.284,18.271,111.9877]
[1673653582783,29.9691928,18.285,18.261,20.0]
[1673653582994,20.0,18.285,18.263,20.0]
[1673653583209,20.0,18.285,18.264,20.0]
[1673653583210,49.9691928,18.285,18.264,20.0]
[1673653583527,29.9691928,18.284,18.264,20.0]
[1673653583844,20.0,18.283,18.263,20.0]
[1673653584033,91.11999451,18.283,18.263,20.0]
[1673653584368,20.0,18.281,18.263,20.0]
[1673653584558,20.0,18.279,18.263,20.0]
[1673653584979,29.9691928,18.28,18.263,20.0]
[1673653585404,47.79044451,18.282,18.263,20.0]
[1673653586259,77.75963731,18.282,18.263,20.0]
[1673653586572,20.0,18.281,18.263,20.0]
[1673653586782,27.21,18.28,18.263,20.0]
[1673653586972,20.0,18.279,18.263,20.0]
[1673653587499,20.0,18.279,18.262,108.6432]
[1673653587500,29.9691928,18.278,18.262,108.6432]
[1673653587710,109.24293053,18.279,18.25,130.4191]
[1673653587935,67.24837034,18.277,18.252,118.3045]
[1673653588148,17.0,18.276,18.252,118.3045]
[1673653588332,141.41212333,18.276,18.252,118.3045]
[1673653588546,124.41212333,18.275,18.252,118.3045]
[1673653588755,20.0,18.273,18.252,118.3045]
[1673653589317,67.19456019,18.273,18.252,118.3045]
[1673653589713,47.19456019,18.273,18.253,20.0]
[1673653589931,36.1829919,18.279,18.253,40.0]
[1673653590133,36.2987428,18.279,18.253,40.0]
[1673653590556,6.32955,18.279,18.253,40.0]
[1673653590768,117.6967,18.28,18.26,27.07]
[1673653590980,117.6967,18.28,18.261,130.2701]
[1673653591303,117.6967,18.28,18.262,20.0]
[1673653593180,117.6967,18.28,18.263,20.0]
[1673653593493,117.6967,18.28,18.264,20.0]
[1673653593705,117.6967,18.28,18.265,20.0]
[1673653594114,117.6967,18.28,18.266,20.0]
[1673653594325,117.6967,18.28,18.267,20.0]
[1673653594752,117.6967,18.28,18.268,20.0]
[1673653596653,117.6967,18.28,18.267,20.0]
[1673653596858,117.6967,18.28,18.265,20.0]
[1673653597075,117.6967,18.28,18.264,20.0]
[1673653597281,117.6967,18.28,18.265,20.0]
[1673653599194,117.6967,18.28,18.263,20.0]
[1673653599600,117.6967,18.28,18.262,20.0]
[1673653600869,117.6967,18.28,18.263,20.0]
[1673653602741,117.6967,18.28,18.262,20.0]
[1673653604746,117.6967,18.28,18.263,20.0]
[1673653606438,117.6967,18.28,18.262,40.0]
[1673653607470,117.6967,18.28,18.263,20.0]
[1673653607678,117.6967,18.28,18.264,20.0]
[1673653610535,117.6967,18.28,18.263,20.0]
[1673653615478,117.6967,18.28,18.262,40.0]
[1673653616123,117.6967,18.28,18.262,20.0]
[1673653617808,117.6967,18.28,18.26,27.07]
[1673653618013,87.73065599,18.279,18.254,119.4196]
[1673653618222,20.0,18.278,18.254,119.4196]
[1673653618424,20.0,18.276,18.254,119.4196]
[1673653618760,50.73065599,18.277,18.255,20.0]
[1673653619813,139.308,18.279,18.26,27.21]
[1673653620236,139.308,18.279,18.261,20.0]
[1673653620452,139.308,18.279,18.26,27.21]
[1673653620662,139.308,18.279,18.255,20.0]
[1673653621192,139.308,18.279,18.256,20.0]
[1673653621406,139.308,18.279,18.257,20.0]
[1673653621714,185.97652787,18.279,18.257,20.0]
[1673653622777,185.97652787,18.279,18.256,20.0]
[1673653625299,237.03923326,18.279,18.256,20.0]
[1673653626016,237.03923326,18.279,18.257,20.0]
[1673653626648,185.97652787,18.279,18.257,20.0]
[1673653628237,46.66852787,18.279,18.257,20.0]
[1673653628457,144.7067,18.28,18.258,20.0]
[1673653628641,117.6967,18.28,18.259,20.0]
[1673653628970,117.6967,18.28,18.261,20.0]
[1673653629162,117.6967,18.28,18.263,20.0]
[1673653629714,117.6967,18.28,18.264,20.0]
[1673653630545,117.6967,18.28,18.262,119.5687]
[1673653630761,17.0,18.279,18.243,164.8]
[1673653631085,17.0,18.279,18.253,119.5687]
[1673653631086,6.32955,18.278,18.253,119.5687]
[1673653631292,20.0,18.276,18.253,119.5687]
[1673653631704,17.0,18.275,18.253,119.5687]
[1673653632124,20.0,18.274,18.253,119.5687]
[1673653632338,20.0,18.274,18.254,20.0]
[1673653632545,62.93136995,18.276,18.254,20.0]
[1673653632969,42.93136995,18.276,18.254,20.0]
[1673653634132,42.93136995,18.276,18.254,19.5]
[1673653634448,62.93136995,18.276,18.254,19.5]
[1673653634660,42.93136995,18.276,18.254,19.5]
[1673653635271,124.77455,18.278,18.255,20.0]
[1673653635479,124.77455,18.278,18.256,20.0]
[1673653636113,154.7437428,18.278,18.256,20.0]
[1673653636316,20.0,18.276,18.255,20.0]
[1673653636530,20.0,18.276,18.256,20.0]
[1673653637285,20.0,18.276,18.254,20.0]
[1673653638342,20.0,18.277,18.254,20.0]
[1673653638650,62.93136995,18.277,18.254,20.0]
[1673653640230,20.0,18.275,18.254,20.0]
[1673653640754,62.93136995,18.275,18.254,20.0]
[1673653640970,92.90056275,18.275,18.254,20.0]
[1673653641372,140.64438392,18.275,18.254,20.0]
[1673653642012,140.64438392,18.275,18.253,119.5687]
[1673653642229,140.64438392,18.275,18.24,215.0748]
[1673653642230,27.21,18.27,18.25,103.2091]
[1673653642444,37.0,18.269,18.25,103.2091]
[1673653642750,20.0,18.268,18.25,103.2091]
[1673653642952,62.93136995,18.268,18.25,103.2091]
[1673653643488,62.93136995,18.268,18.241,114.5553]
[1673653643679,20.0,18.266,18.241,114.5553]
[1673653644104,49.9691928,18.266,18.241,114.5553]
[1673653644316,20.0,18.266,18.241,114.5553]
[1673653645276,20.0,18.266,18.243,20.0]
[1673653645489,20.0,18.266,18.244,20.0]
[1673653646224,112.8355,18.267,18.244,20.0]
[1673653646833,112.8355,18.267,18.242,20.0]
[1673653647040,20.0,18.266,18.242,20.0]
[1673653647463,62.93136995,18.266,18.242,20.0]
[1673653648428,17.0,18.265,18.242,20.0]
[1673653648625,20.0,18.264,18.242,20.0]
[1673653649392,65.13136995,18.263,18.242,20.0]
[1673653649694,65.13136995,18.263,18.241,114.5553]
[1673653649695,20.0,18.261,18.241,114.5553]
[1673653649892,136.3361,18.26,18.241,114.5553]
[1673653650103,20.67217184,18.259,18.241,114.5553]
[1673653650310,20.0,18.257,18.231,20.0]
[1673653650630,20.0,18.257,18.233,20.0]
[1673653651250,20.0,18.257,18.234,20.0]
[1673653651457,0.7835477,18.256,18.234,20.0]
[1673653652422,0.71649804,18.256,18.234,20.0]
[1673653653031,132.6504,18.257,18.234,20.0]
[1673653653253,0.6911722,18.256,18.234,20.0]
[1673653654117,64.74382117,18.256,18.232,118.0268]
[1673653654318,57.22644687,18.255,18.232,118.0268]
[1673653654530,17.0,18.254,18.232,118.0268]
[1673653654740,27.43273299,18.253,18.232,118.0268]
[1673653654958,27.27,18.25,18.22,722.3964]
[1673653655166,38.10318299,18.249,18.224,117.7991]
[1673653655491,20.0,18.248,18.224,117.7991]
[1673653656008,20.0,18.246,18.224,117.7991]
[1673653656325,17.0,18.245,18.224,117.7991]
[1673653658209,20.0,18.244,18.224,117.7991]
[1673653658406,24.05782414,18.243,18.224,117.7991]
[1673653658616,20.0,18.242,18.224,117.7991]
[1673653658820,17.76554748,18.241,18.225,20.0]
[1673653659053,17.0,18.241,18.225,20.0]
[1673653659462,112.0054,18.24,18.225,20.0]
[1673653659895,20.0,18.239,18.225,20.0]
[1673653660213,20.0,18.238,18.223,31.1133535]
[1673653660413,1.34730815,18.237,18.223,31.1133535]
[1673653660946,21.34730815,18.237,18.223,31.1133535]
[1673653661348,1.34730815,18.237,18.223,31.1133535]
[1673653661584,1.34730815,18.239,18.223,31.1133535]
[1673653661888,112.0054,18.24,18.224,20.0]
[1673653662105,112.0054,18.24,18.225,20.0]
[1673653663992,112.0054,18.24,18.224,40.0]
[1673653664833,112.0054,18.24,18.225,20.0]
[1673653666838,112.0054,18.24,18.224,20.0]
[1673653667335,112.0054,18.24,18.225,20.0]
[1673653668940,112.0054,18.24,18.227,20.0]
[1673653669244,112.0054,18.24,18.226,20.0]
[1673653669466,112.0054,18.24,18.228,20.0]
[1673653669962,112.0054,18.24,18.225,20.0]
[1673653671772,112.0054,18.24,18.224,20.0]
[1673653675992,112.0054,18.24,18.223,31.1133535]
[1673653675993,20.36,18.23,18.223,0.0033535]
[1673653676191,1.38110373,18.238,18.223,0.0033535]
[1673653676824,53.2853114,18.238,18.223,0.0033535]
[1673653677043,68.90420767,18.238,18.223,0.0033535]
[1673653677246,0.85272642,18.237,18.223,0.0033535]
[1673653677671,20.0,18.235,18.223,0.0033535]
[1673653677878,0.85272642,18.234,18.223,0.0033535]
[1673653678618,20.0,18.235,18.223,0.0033535]
[1673653678829,18.032762,18.234,18.223,0.0033535]
[1673653679046,7.362312,18.234,18.223,0.0033535]
[1673653679256,1.032762,18.232,18.223,0.0033535]
[1673653679444,20.52,18.23,18.211,114.9684]
[1673653679655,57.0,18.229,18.211,114.9684]